[Event "GER-ch Youth-ODJM 2022"]
[Site "Willingen"]
[Date "2022.06.07"]
[Round "4.16"]
[White "Kruse, Victor"]
[Black "Hofmann, Lorenz"]
[Result "1-0"]
[ECO "D30"]
[WhiteElo "1733"]
[BlackElo "2056"]
[Annotator "TA"]
[PlyCount "137"]
[EventDate "2022.06.05"]
[EventType "swiss"]
[EventRounds "9"]
[EventCountry "GER"]
[SourceTitle "playchess.com"]
[Source "ChessBase"]
[SourceQuality "1"]
[TimeControl "40/4500+30:900+30"]

{[%evp 9,137,25,34,32,30,34,57,5,15,9,20,-35,-48,-47,-33,-38,-9,-18,-38,-29,-22,0,-17,-37,0,0,0,-27,-20,-25,0,-28,0,-50,-8,-18,0,-6,0,-4,0,0,0,0,19,14,26,36,39,52,172,135,190,178,170,130,172,178,173,172,323,299,391,256,543,512,633,211,211,211,211,192,695,700,818,791,783,634,639,612,617,0,126,0,0,0,125,0,608,572,577,540,604,221,781,610,826,785,817,813,716,610,610,610,595,508,3129,588,3979,3757,29960,231,1514,232,29967,29968,29966,29966,29964,29963,29982,29982,29981,29981,29987,29987,29990,29991,29991,854]} 1. d4 {[%emt 0:00:00]} d5 {[%emt 0:00:00]} 2. c4 {[%emt 0:00:00]} e6 {[%emt 0:00:00]} 3. Nf3 {[%emt 0:00:00]} a6 {[%emt 0:00:00]} 4. Bg5 {[%emt 0:00:00]} Be7 {[%emt 0:00:00]} 5. Bxe7 {[%emt 0:00:00]} Nxe7 {[%emt 0:00:00]} 6. Nbd2 {[%emt 0:00:00] D30: Queen's Gambit Declined: Systems without Nc3.} O-O {[%emt 0:00:00]} 7. g3 {[%emt 0:00:00]} dxc4 {[%emt 0:00:00] [#]} 8. a4 $146 {[%emt 0:00:00]} (8. Nxc4 $14 b5 9. Nce5) ({Predecessor:} 8. Nxc4 b5 9. Nce5 Bb7 10. Bg2 Nd7 11. Nd3 Rc8 12. b4 Ng6 13. O-O Qf6 14. e3 {0-1 (86) Kozionov,K (2470)-Svane,R (2613) Chess.com INT 2020}) 8... b6 {[%emt 0:00:00][%cal Bb7b6,Bb6b5][%mdl 32]} 9. Bg2 {[%emt 0:00:00][%mdl 1024] White has compensation.} Bb7 {[%emt 0:00:00]} 10. O-O {[%emt 0:00:00]} (10. Nxc4 $11 a5 11. O-O) 10... b5 $1 $15 {[%emt 0:04:34]} 11. Qc2 {[%emt 0:00:00]} Nbc6 {[%emt 0:05:15]} 12. b3 {[%emt 0:11:45]} ({But not} 12. Ng5 $2 Nf5 13. h4 Ncxd4 $19) (12. axb5 axb5 13. Rxa8 (13. Ng5 $2 Nf5 $19) 13... Qxa8 $17) 12... Nxd4 {[%emt 0:13:54]} 13. Nxd4 {[%emt 0:01:42]} Bxg2 {[%emt 0:00:08]} 14. Nxe6 $1 {[%emt 0:01:14]} fxe6 {[%emt 0:01:09]} 15. Kxg2 {[%emt 0:00:15]} Qd5+ {[%emt 0:18:12]} 16. Kg1 {[%emt 0:00:18][%cal Rb3c4]} Qe5 {[%emt 0:01:08]} (16... Rad8 $5 {[%cal Rd5d2]} 17. Rad1 Qe5 18. axb5 axb5 $15) 17. bxc4 {[%emt 0:18:47]} b4 {[%emt 0:00:38]} 18. Qe4 {[%emt 0:09:52] Inhibits Nc6.} (18. Nf3 $5 {[%cal Rf3e5]} Qf5 19. Qd2 $15) 18... Qxe4 {[%emt 0:06:41]} 19. Nxe4 {[%emt 0:00:05]} Rfd8 {[%emt 0:02:01]} 20. Rfd1 {[%emt 0:07:32] Prevents Rd4.} Kf7 {[%emt 0:04:12]} 21. h4 {[%emt 0:02:29]} (21. Ng5+ $11 Kf6 22. Ne4+ Kf7 23. Ng5+ Kf6 24. Ne4+ Kf7) 21... h6 {[%emt 0:00:33]} 22. Nc5 {[%emt 0:01:27]} a5 {[%emt 0:00:40]} 23. e3 {[%emt 0:05:17]} Nc6 {[%emt 0:01:49]} 24. f4 {[%emt 0:01:41]} e5 {[%emt 0:04:37]} 25. Kf2 {[%emt 0:01:27]} exf4 {[%emt 0:00:23]} 26. gxf4 {[%emt 0:00:15]} Rxd1 {[%emt 0:08:03]} (26... g5 $5) 27. Rxd1 $11 {[%emt 0:00:06][%mdl 4096] Endgame With the idea Rd7+. KRN-KRN} Rd8 {[%emt 0:00:05]} 28. Rd5 {[%emt 0:01:43]} Rd6 {[%emt 0:01:25]} 29. Nb3 {[%emt 0:01:18]} Ke6 {[%emt 0:05:56]} ({Black should play} 29... Rxd5 $14 30. cxd5 Ne7) 30. e4 $18 {[%emt 0:00:23]} Kf7 {[%emt 0:02:16]} (30... g6 $16 31. Ke3 Kf7) 31. Ke3 {[%emt 0:00:25]} Rg6 {[%emt 0:01:23] Hoping for ...Rg3+.} 32. Kf3 {[%emt 0:00:53] Against Rg3+} Rg1 {[%emt 0:01:09]} 33. Nxa5 Nxa5 34. Rxa5 {[%emt 0:06:26] KR-KR} Ra1 $2 {[%emt 0:00:28]} (34... c6 35. Ra7+ Ke6) 35. Rc5 {[%emt 0:03:15]} Rxa4 {[%emt 0:01:04]} 36. Rxc7+ {[%emt 0:00:12]} Kf8 $2 {[%emt 0:02:17]} (36... Kg6 37. f5+ Kf6) 37. Rb7 {[%emt 0:02:26]} b3 {[%emt 0:00:20]} 38. c5 {[%emt 0:00:25]} (38. h5 Rxc4 39. Rxb3) 38... Rc4 {[%emt 0:00:16]} 39. Rxb3 {[%emt 0:00:11]} Rxc5 {[%emt 0:00:05]} 40. f5 {[%emt 0:00:38]} Rc4 $2 {[%emt 0:02:13]} (40... Rc1 41. h5 Rh1) 41. Kf4 {[%emt 0:17:20]} Ke7 {[%emt 0:00:00]} 42. Rb7+ {[%emt 0:00:00]} Kf6 {[%emt 0:00:00]} 43. Rb6+ {[%emt 0:00:00]} Ke7 {[%emt 0:00:00]} 44. Re6+ {[%emt 0:00:00]} Kf7 {[%emt 0:00:00]} 45. Kg4 $2 {[%emt 0:00:00]} (45. Ra6 $18 Rb4 46. h5) 45... Rb4 {[%emt 0:00:00] [#]} (45... Rc1 $1 $11) 46. Kh5 {[%emt 0:00:00]} (46. h5 $1 $16) 46... Ra4 $11 {[%emt 0:01:15]} 47. Kg4 {[%emt 0:00:00]} (47. Re5 $11) 47... Rb4 $16 {[%emt 0:00:10] [#]} 48. Kf4 {[%emt 0:00:00]} (48. h5 $1 $16) 48... Ra4 $2 {[%emt 0:00:26][%mdl 8192] Black is now going downhill.} (48... Rc4 $11) 49. Rd6 {[%emt 0:00:00]} Ke7 {[%emt 0:01:25]} 50. Rc6 {[%emt 0:00:00]} Rb4 {[%emt 0:01:57]} 51. Ke5 $2 {[%emt 0:00:00]} (51. Rc7+ Kf6 52. Rc6+ Kf7 53. Rd6) 51... Rb5+ $2 {[%emt 0:01:51]} (51... Rb7 52. h5 Rb5+ 53. Kf4 Rb4 54. Re6+ Kf7) 52. Kd4 $18 {[%emt 0:00:00]} Ra5 {[%emt 0:01:12]} 53. e5 {[%emt 0:00:00]} Ra4+ {[%emt 0:02:18]} 54. Rc4 {[%emt 0:00:00]} Ra7 {[%emt 0:00:20]} 55. Rb4 {[%emt 0:00:00]} Rd7+ {[%emt 0:01:27]} 56. Ke4 {[%emt 0:00:00]} Ra7 {[%emt 0:00:53]} 57. Kf4 {[%emt 0:00:00] Black must now prevent Kg4.} Rc7 {[%emt 0:00:50]} (57... Ra1 $142 58. Rb7+ Kf8 59. Rb8+ Ke7 60. Rb7+ Kf8) 58. Kg4 {[%emt 0:00:00] And now Kh5 would win.} Ra7 {[%emt 0:00:22]} 59. Kh5 {[%emt 0:00:00] White threatens Kg6 and mate.} Kf7 {[%emt 0:00:07]} 60. Re4 $2 {[%emt 0:00:00]} (60. Rb8 {mates} g6+ 61. fxg6+ Kg7 62. Re8 Rb7 63. Re6 Rd7 64. Rf6 Rd5 65. Rf7+ Kg8 66. Re7) 60... Rb7 $2 {[%emt 0:02:28]} (60... Re7 61. Kg4 Re8) 61. Rd4 $2 {[%emt 0:00:00]} (61. Rc4 {Strongly threatening Rc8.} Rb1 62. Rc5 (62. Rc7+ Kf8 $18)) 61... Rb5 $2 {[%emt 0:04:23]} (61... Rb3 $18 62. Rd7+ Kf8) 62. Rd7+ {[%emt 0:00:00] White mates.} Kf8 {[%emt 0:00:01]} 63. Kg6 {[%emt 0:00:00]} Rxe5 {[%emt 0:00:32]} 64. Rf7+ {[%emt 0:00:00]} Kg8 {[%emt 0:01:20]} 65. Rxg7+ {[%emt 0:00:00]} Kf8 {[%emt 0:00:18]} 66. Rb7 {[%emt 0:00:31]} Ra5 {[%emt 0:00:32]} 67. f6 {[%emt 0:00:29][%cal Rb7b8,Bf5f6,Bf6f7][%mdl 32]} Ra8 {[%emt 0:00:31]} 68. Rh7 {[%emt 0:00:13][%cal Rh7h8]} Kg8 {[%emt 0:00:14]} 69. f7+ {[%emt 0:00:06] Weighted Error Value: White=0.53/Black=0.80} 1-0

[Event "GER-ch Youth-ODJM 2022"]
[Site "Willingen"]
[Date "2022.06.07"]
[Round "4.17"]
[White "Weigand, Anton"]
[Black "Frohnhaeuser, Simon"]
[Result "1/2-1/2"]
[ECO "B22"]
[WhiteElo "1866"]
[BlackElo "1939"]
[Annotator "TA"]
[PlyCount "142"]
[EventDate "2022.06.05"]
[EventType "swiss"]
[EventRounds "9"]
[EventCountry "GER"]
[SourceTitle "playchess.com"]
[Source "ChessBase"]
[SourceQuality "1"]
[TimeControl "40/4500+30:900+30"]

{[%evp 14,142,31,-8,0,0,6,-30,0,-2,-11,-62,-19,-18,-9,-38,0,0,0,0,66,-7,36,-38,-23,-4,0,-29,-22,-30,-4,-126,-115,-127,-111,-97,-79,-84,-85,-105,-110,-182,-182,-279,-243,-234,-123,-287,-163,-277,-225,-274,-218,-258,-198,-285,-216,-233,-222,-266,-266,-375,-348,-364,-262,-235,-161,-163,-139,-162,-160,-210,-146,-156,-125,-321,-321,-291,-87,-88,-83,-138,-148,-165,-116,-150,-141,-181,-79,-83,-80,-77,-41,-44,-48,-92,-83,-150,-64,-27,-27,-28,-28,-53,-27,-297,-294,-268,-54,-65,0,-133,-15,-15,-15,-15,-15,-15,-15,-15,-15,-15,-15,-15,-15,-15,-15,-15,-8,-8,0]} 1. e4 {[%emt 0:00:00]} c5 {[%emt 0:00:00]} 2. c3 {[%emt 0:00:00]} d5 {[%emt 0:00:00]} 3. exd5 {[%emt 0:00:00]} Qxd5 {[%emt 0:00:00]} 4. d4 {[%emt 0:00:00]} Nc6 {[%emt 0:00:00]} 5. Nf3 {[%emt 0:00:00]} cxd4 {[%emt 0:00:00]} 6. cxd4 {[%emt 0:00:00]} e5 {[%emt 0:00:00]} 7. Nc3 {[%emt 0:07:45]} Bb4 {[%emt 0:00:00]} 8. dxe5 {[%emt 0:00:09]} (8. Bd2 {looks sharper.} Bxc3 9. Bxc3 exd4 10. Nxd4 Nf6 11. Nxc6 Qxc6 12. Bxf6 gxf6 13. Rc1) 8... Qxd1+ {[%emt 0:00:00] B22: Sicilian: 2 c3.} 9. Kxd1 {[%emt 0:00:37]} Bg4 {[%emt 0:00:00]} 10. Bf4 {[%emt 0:13:42]} O-O-O+ {[%emt 0:00:09] Black has an edge.} 11. Kc1 {[%emt 0:05:41]} Nge7 {[%emt 0:02:22]} 12. Bb5 {[%emt 0:04:07]} (12. Be2 $11) 12... Bxf3 {[%emt 0:02:19]} (12... Nd5 $5 {[%cal Rd5f4]} 13. Bd2 Bxf3 14. Bxc6 Bxg2 15. Bxd5 Bxd5 $15) 13. gxf3 {[%emt 0:00:21]} Nd4 {[%emt 0:00:03]} 14. Bf1 {[%emt 0:02:13] [#]} b6 $146 {[%emt 0:04:47][%mdl 1024] Black has compensation.} ({Predecessor:} 14... Ng6 15. Bg3 Nxf3 16. Bh3+ Kb8 17. e6+ Ka8 18. exf7 Ng5 19. Bg2 Nxf7 20. Re1 Bd6 {½-½ (51) Sun,F-Xu,T (2119) Suzhou 2001}) 15. Ba6+ {[%emt 0:08:14]} Kd7 {[%emt 0:01:41]} 16. Rd1 {[%emt 0:05:26]} Kc6 {[%emt 0:00:08]} (16... Ke6 $1 $11) 17. Kb1 {[%emt 0:03:04]} (17. Bd3 $1 $14 Bxc3 18. bxc3) 17... Ne6 {[%emt 0:19:08] [#]} 18. Be3 {[%emt 0:07:26]} (18. Rc1 $1 $14) 18... Rxd1+ {[%emt 0:13:37]} (18... Bxc3 $5 19. Rxd8 Rxd8 20. bxc3 Rd1+ 21. Kb2 Rxa1 22. Kxa1 Ng6 $11) 19. Nxd1 {[%emt 0:00:15]} Nf5 {[%emt 0:00:19]} 20. Bd3 {[%emt 0:03:06] A strong pair of Bishops.} Rd8 {[%emt 0:05:59]} 21. Be4+ {[%emt 0:00:32]} Kc7 {[%emt 0:00:06]} 22. Nc3 {[%emt 0:02:02]} (22. Kc2 $11 {remains equal.} Nfd4+ 23. Kc1) 22... Nxe3 $17 {[%emt 0:00:31]} 23. fxe3 {[%emt 0:00:28]} Bxc3 {[%emt 0:00:06]} 24. bxc3 {[%emt 0:00:11][%mdl 4096] Endgame KRB-KRN} Rd1+ {[%emt 0:00:02]} 25. Kb2 {[%emt 0:00:44]} Rd2+ {[%emt 0:00:05]} 26. Bc2 {[%emt 0:03:34]} Rxh2 {[%emt 0:00:15]} 27. Re1 {[%emt 0:01:48]} (27. f4 $17) 27... h5 $19 {[%emt 0:00:48][%cal Bh7h5,Bh5h4][%mdl 32]} 28. c4 {[%emt 0:03:04]} (28. Rg1 $142) 28... h4 {[%emt 0:00:30]} 29. Kc3 {[%emt 0:00:20]} Nc5 {[%emt 0:00:22]} (29... Rf2 $19 {White must now prevent ...h3.} 30. f4 h3) 30. a3 $2 {[%emt 0:01:49]} (30. Rg1 $17 g6 31. f4) 30... Rg2 {[%emt 0:01:04]} (30... Rf2 $142 31. Rg1 g6) 31. Bf5 {[%emt 0:01:57]} (31. Rh1 $142) 31... Rg5 {[%emt 0:02:13]} 32. Bh3 {[%emt 0:01:18]} Rxe5 {[%emt 0:00:09]} 33. f4 {[%emt 0:00:25]} Re8 {[%emt 0:00:50]} 34. Bg2 {[%emt 0:03:08]} (34. Kd2 {is a better defense.}) 34... Rh8 {[%emt 0:01:24]} 35. Rh1 {[%emt 0:00:42]} Kd6 {[%emt 0:01:55]} 36. Bh3 {[%emt 0:02:45]} Re8 {[%emt 0:04:20]} 37. Kd2 {[%emt 0:02:08]} (37. Re1 $142) 37... Ne4+ {[%emt 0:00:10]} 38. Kc2 {[%emt 0:01:15]} Kc5 {[%emt 0:00:06]} 39. Bg2 {[%emt 0:01:10]} Kxc4 {[%emt 0:01:40]} 40. Rxh4 {[%emt 0:00:17] Strongly threatening f5.} Nf6 {[%emt 0:04:07]} 41. Bf1+ {[%emt 0:00:00]} Kc5 {[%emt 0:00:00]} 42. Kd3 {[%emt 0:00:00]} (42. Rh3 $17 {keeps fighting.}) 42... Rd8+ {[%emt 0:00:00]} 43. Kc2 {[%emt 0:00:00]} b5 {[%emt 0:00:00]} 44. e4 $2 {[%emt 0:00:02]} (44. Bg2 $17) 44... Nxe4 {[%emt 0:00:00]} 45. Rh5+ {[%emt 0:00:13]} Kc6 $2 {[%emt 0:00:00]} (45... Rd5 $19 {is more deadly.} 46. Rh2 Nd6) 46. Bxb5+ $17 {[%emt 0:01:33]} Kb6 {[%emt 0:02:21] Hoping for ...Rd2+.} 47. a4 {[%emt 0:06:12]} (47. Bd3 $142 Nc5 48. Bc4) 47... Rd2+ {[%emt 0:02:05]} 48. Kb3 {[%emt 0:00:16][%cal Oa4a5]} Nc5+ {[%emt 0:02:27]} (48... a5 $19 49. Re5 Nd6) 49. Kc3 {[%emt 0:01:11] [#]} Rf2 {[%emt 0:00:39]} 50. Rf5 {[%emt 0:02:33]} Ne4+ {[%emt 0:00:53]} (50... f6 $19 {has better winning chances. aiming for ...a6.} 51. Kd4 a6) 51. Kd3 {[%emt 0:01:43]} Nd6 {[%emt 0:00:10]} 52. Rd5 {[%emt 0:00:20]} Kc7 {[%emt 0:00:59]} 53. Ke3 {[%emt 0:00:56] Against Rf3+} Rc2 {[%emt 0:00:56]} 54. Re5 {[%emt 0:01:04]} Nxb5 {[%emt 0:01:17]} 55. axb5 {[%emt 0:01:00] KR-KR} (55. Rxb5 $142 a6 56. Re5) 55... Kd6 {[%emt 0:00:49]} ({Black should play} 55... Kb6 $17 56. Rg5 Rc7) 56. Re8 $15 {[%emt 0:00:49]} Rc7 {[%emt 0:04:26] And now ...Re7+ would win.} 57. Kd4 {[%emt 0:01:05]} Re7 {[%emt 0:01:47]} 58. Rc8 {[%emt 0:02:07]} Rb7 {[%emt 0:01:44]} (58... Ke6 $5 {[%cal Re6f5]} 59. Rc5 g6 $17) 59. Ra8 $2 {[%emt 0:01:56][%mdl 8192] [#]} (59. Rc6+ $11 Kd7 60. Ra6) 59... g6 $1 $19 {[%emt 0:01:53]} ({Inferior is} 59... Rxb5 60. Rxa7 Ke6 61. Ke4 $11) 60. Rd8+ {[%emt 0:00:55]} Rd7 $2 {[%emt 0:03:33]} (60... Ke6 $19 {...Rd7+ is the strong threat.} 61. Ra8 Rc7) 61. Rc8 {[%emt 0:00:16]} Rb7 {[%emt 0:01:25]} (61... Rc7 $1 $15 62. Re8 Rb7) 62. Ra8 {[%emt 0:00:52]} (62. Rd8+ $11 Ke6 63. Ra8) 62... Rxb5 {[%emt 0:00:20]} (62... f6 $17) 63. Rxa7 $11 {[%emt 0:00:08] The position is equal.} Rb4+ {[%emt 0:00:21]} 64. Ke3 {[%emt 0:00:17]} Ke6 {[%emt 0:00:06]} 65. Ra5 {[%emt 0:00:47]} f6 {[%emt 0:00:28]} 66. Kf3 {[%emt 0:00:23]} Rd4 {[%emt 0:00:24]} 67. Ra6+ {[%emt 0:00:29]} Rd6 {[%emt 0:00:15]} 68. Ra5 {[%emt 0:00:06]} Rd5 {[%emt 0:00:08]} 69. Ra6+ {[%emt 0:01:14]} Kf5 {[%emt 0:00:09] Threatens to win with ...Rd3+.} 70. Ra3 {[%emt 0:00:10] Prevents Rd3+.} g5 {[%emt 0:02:12]} 71. fxg5 {[%emt 0:00:11]} Ke5 {Weighted Error Value: White=0.49/Black=0.37} 1/2-1/2

[Event "GER-ch Youth-ODJM 2022"]
[Site "Willingen"]
[Date "2022.06.07"]
[Round "4.18"]
[White "Lohr, Maximilian"]
[Black "Fock, Amina"]
[Result "1-0"]
[ECO "B90"]
[WhiteElo "2080"]
[BlackElo "1790"]
[Annotator "TA"]
[PlyCount "43"]
[EventDate "2022.06.05"]
[EventType "swiss"]
[EventRounds "9"]
[EventCountry "GER"]
[SourceTitle "playchess.com"]
[Source "ChessBase"]
[SourceQuality "1"]
[TimeControl "40/4500+30:900+30"]

{[%evp 15,43,26,37,-20,-33,-17,33,31,39,28,56,59,67,79,71,27,79,64,65,66,96,80,644,633,594,527,520,517,487,281]} 1. e4 {[%emt 0:00:00]} c5 {[%emt 0:00:00]} 2. Nf3 {[%emt 0:00:00]} d6 {[%emt 0:00:00]} 3. d4 {[%emt 0:00:00]} cxd4 {[%emt 0:00:00]} 4. Nxd4 {[%emt 0:00:00]} Nf6 {[%emt 0:00:00]} 5. Nc3 {[%emt 0:00:00]} a6 {[%emt 0:00:00]} 6. h3 {[%emt 0:00:00]} e6 {[%emt 0:00:00]} 7. g4 {[%emt 0:00:00]} d5 {[%emt 0:00:00]} 8. exd5 {[%emt 0:00:00]} Nxd5 {[%emt 0:00:00]} 9. Bg2 {[%emt 0:00:00] B81: Sicilian Scheveningen: Keres Attack.} (9. Nde2 $14) 9... Nxc3 $11 {[%emt 0:00:00]} 10. bxc3 {[%emt 0:00:00]} e5 {[%emt 0:00:00]} (10... Qc7 $11 11. O-O Bd6) 11. Qe2 $14 {[%emt 0:00:00] White is slightly better.} Qc7 {[%emt 0:00:00]} 12. O-O {[%emt 0:00:00]} Bd6 {[%emt 0:01:55] [#]} 13. Nf5 $146 {[%emt 0:09:39]} ({Predecessor:} 13. Rb1 O-O 14. Nf5 Nc6 15. Nxd6 Qxd6 16. Rd1 Qe7 17. f4 f5 18. fxe5 fxg4 19. hxg4 Qxe5 20. Qxe5 Nxe5 {½-½ (75) Hansson,D (2345)-Schussler,H (2360) Stockholm 1977}) 13... Bxf5 {[%emt 0:05:22]} 14. gxf5 {[%emt 0:00:06]} Nd7 {[%emt 0:00:35]} 15. Rb1 {[%emt 0:09:14]} Rb8 {[%emt 0:01:01]} (15... Nc5 $11 {keeps the balance.}) 16. Qg4 {[%emt 0:01:02]} Kf8 {[%emt 0:10:02]} 17. Rd1 $36 {[%emt 0:01:24][%cal Ob1b7][%mdl 2048] White has some pressure. White is more active.} b5 {[%emt 0:04:02]} 18. a4 {[%emt 0:02:53]} bxa4 $2 {[%emt 0:08:38][%mdl 8192] [#] This move loses the game for Black.} (18... Nf6 $16 19. Qe2 Ke7) 19. Rxb8+ $18 {[%emt 0:00:26] White is clearly winning.} Qxb8 {[%emt 0:00:05]} 20. Qxa4 {[%emt 0:00:31]} Nc5 {[%emt 0:00:53]} 21. Qc6 {[%emt 0:03:39]} Ke7 {[%emt 0:04:17]} 22. Ba3 {[%emt 0:00:06] Weighted Error Value: White=0.17 (very precise) /Black=0.72} (22. Bg5+ $142 f6 23. Be3) 1-0

[Event "GER-ch Youth-ODJM 2022"]
[Site "Willingen"]
[Date "2022.06.07"]
[Round "4.19"]
[White "Kliashtornyi, Arkadii"]
[Black "Kotyk, Michael"]
[Result "1-0"]
[ECO "D02"]
[WhiteElo "1755"]
[BlackElo "2170"]
[Annotator "TA"]
[PlyCount "88"]
[EventDate "2022.06.05"]
[EventType "swiss"]
[EventRounds "9"]
[EventCountry "GER"]
[SourceTitle "playchess.com"]
[Source "ChessBase"]
[SourceQuality "1"]
[TimeControl "40/4500+30:900+30"]

{[%evp 9,88,16,27,2,15,16,25,15,20,26,14,7,19,1,5,0,37,34,66,62,76,19,25,20,48,40,65,12,14,22,24,28,32,0,14,0,32,0,28,0,93,95,91,92,216,214,319,323,503,501,641,349,382,370,403,401,642,631,679,400,511,450,408,405,451,389,395,394,352,338,492,489,550,529,1885,1977,29948,5281,6211,5273,29992]} 1. d4 {[%emt 0:00:00]} d5 {[%emt 0:00:00]} 2. Nf3 {[%emt 0:00:00]} Nf6 {[%emt 0:00:00]} 3. g3 {[%emt 0:00:00]} e6 {[%emt 0:00:00]} 4. Bg2 {[%emt 0:00:00]} b5 {[%emt 0:00:00]} 5. O-O {[%emt 0:00:00]} Be7 {[%emt 0:00:00]} 6. b3 {[%emt 0:00:00] A46: 1 d4 Nf6 2 Nf3 e6: Torre, London and Colle Systems.} (6. a4 $5 {[%cal Ra4b5]}) 6... Bb7 {[%emt 0:00:00]} 7. Ne5 {[%emt 0:00:00]} b4 {[%emt 0:00:00]} 8. c4 {[%emt 0:04:29] White has an edge.} bxc3 {[%emt 0:00:00]} 9. Nxc3 {[%emt 0:00:08]} O-O {[%emt 0:00:00] [#]} 10. Bb2 $146 {[%emt 0:08:35]} ({Predecessor:} 10. Na4 Nbd7 11. Nd3 Bc6 12. Nc3 Qb8 13. Bb2 Qb7 14. Qc2 Rfc8 15. Rfc1 a5 16. e3 {½-½ (16) Hilby,C (2434)-Lenderman,A (2638) Charlotte 2020}) 10... Nfd7 {[%emt 0:00:00]} 11. Nxd7 {[%emt 0:03:42]} Nxd7 {[%emt 0:00:00]} 12. Rc1 {[%emt 0:01:46]} Rc8 {[%emt 0:00:00]} 13. Na4 {[%emt 0:03:57]} Bf6 {[%emt 0:23:23][%cal Oc7c5]} 14. Qd2 {[%emt 0:04:46]} Re8 {[%emt 0:12:02]} 15. Nc5 {[%emt 0:07:38] White is more active.} (15. Ba3 $16) 15... Nxc5 $11 {[%emt 0:00:23]} 16. Rxc5 {[%emt 0:00:30]} Qd6 {[%emt 0:03:49]} 17. Rfc1 {[%emt 0:04:45]} Qb6 {[%emt 0:02:44]} 18. e3 {[%emt 0:15:46]} ({Better is} 18. Bc3 $1 $14) 18... Be7 {[%emt 0:00:23]} 19. R5c2 {[%emt 0:00:52]} f6 {[%emt 0:12:45]} 20. Bc3 {[%emt 0:04:26] aiming for Ba5.} Ba3 {[%emt 0:01:14]} 21. Bb2 {[%emt 0:02:39]} Bd6 {[%emt 0:04:48]} 22. Bc3 {[%emt 0:04:08]} Ba3 {[%emt 0:06:54]} 23. Bb2 {[%emt 0:00:38]} Bd6 {[%emt 0:00:33]} 24. Bc3 {[%emt 0:00:06][%cal Bb2c3,Bc3b4,Bb4d6][%mdl 32]} Qb5 {[%emt 0:00:03]} (24... Ba3 $1 $11) 25. Bf1 $36 {[%emt 0:05:49][%mdl 2048] Black is under strong pressure.} Qd7 {[%emt 0:00:01]} 26. Bb4 {[%emt 0:00:16] Prevents c5.} e5 {[%emt 0:01:06] [#] A mistake that costs the game.} (26... c6 $16) 27. Bxd6 $1 $18 {[%emt 0:00:17]} Qxd6 {[%emt 0:00:10]} (27... cxd6 {was called for.} 28. Qa5 exd4) 28. Bh3 {[%emt 0:01:34]} Rcd8 {[%emt 0:02:27]} (28... exd4 $142 29. exd4 (29. Bxc8 dxe3 30. fxe3 Rxc8 $18) 29... Rb8 30. Rxc7 a6) 29. Rxc7 {[%emt 0:00:07]} Qb6 {[%emt 0:01:19]} 30. Qc3 {[%emt 0:03:51]} Rb8 {[%emt 0:05:01]} 31. Qc5 {[%emt 0:00:17]} Qxc5 {[%emt 0:00:50]} 32. dxc5 {[%emt 0:01:36][%cal Bd4c5,Bc5c6][%mdl 32]} ({Not} 32. R1xc5 a6 33. Bg2 e4 $18) 32... d4 {[%emt 0:03:36]} (32... Bc8 $142 33. Bd7 Bxd7) 33. c6 {[%emt 0:01:37]} Bc8 {[%emt 0:00:19]} 34. Bxc8 {[%emt 0:00:45]} Rexc8 {[%emt 0:00:01]} 35. Rxa7 {[%emt 0:00:29][%mdl 4096] Endgame KRR-KRR} Rb6 {[%emt 0:00:50]} 36. exd4 {[%emt 0:02:04]} exd4 {[%emt 0:00:39]} 37. Rd7 {[%emt 0:00:13] [#] Strongly threatening c7.} ({Weaker is} 37. c7 d3 38. Kf1 d2 $18) 37... Rcxc6 {[%emt 0:00:22]} 38. Rxc6 {[%emt 0:00:05]} Rxc6 {[%emt 0:00:06]} 39. Rxd4 {[%emt 0:00:02] KR-KR} Rc2 {[%emt 0:00:07]} (39... Rb6 $142 40. b4 Ra6) 40. a4 {[%emt 0:00:26][%cal Ba2a4,Ba4a5,Ba5a6][%mdl 32] Threatens to win with a5.} Rb2 {[%emt 0:00:04]} 41. Rb4 {[%emt 0:15:04] And now a5 would win.} Kf7 {[%emt 0:15:06]} 42. a5 {[%emt 0:00:05] Black must now prevent a6.} Ke6 {[%emt 0:00:05]} 43. a6 {[%emt 0:00:06] a7 would kill now.} Ra2 {[%emt 0:00:08]} 44. Ra4 {[%emt 0:00:05]} Kd5 {Weighted Error Value: White=0.29 (precise) /Black=0.63} 1-0